fUSD/lending_fUSD_20250511
["ID","MTS","AMOUNT","RATE_DAILY","PERIOD"]
[360709971,1746946248077,-400.0,0.00019896,2]
[360709972,1746946248088,-513.90043932,0.00019896,2]
[360709973,1746946248099,-156.756452,0.00019896,2]
[360709974,1746946248108,-400.0,0.00019896,2]
[360709975,1746946248119,-400.0,0.00019896,2]
[360709976,1746946248129,-400.0,0.00019896,2]
[360709977,1746946248139,-450.0,0.00019896,2]
[360709978,1746946248149,-400.0,0.00019896,2]
[360709979,1746946248159,-400.0,0.00019896,2]
[360709980,1746946248170,-400.0,0.00019896,2]
[360709981,1746946248181,-400.0,0.00019896,2]
[360709982,1746946248191,-400.0,0.00019896,2]
[360709983,1746946248201,-400.0,0.00019896,2]
[360709984,1746946248211,-400.0,0.00019896,2]
[360709985,1746946248221,-400.0,0.00019896,2]
[360709986,1746946248231,-450.0,0.00019896,2]
[360709987,1746946248241,-400.0,0.00019896,2]
[360709988,1746946248251,-450.0,0.00019896,2]
[360709989,1746946248260,-400.0,0.00019896,2]
[360709990,1746946248271,-450.0,0.00019896,2]
[360709991,1746946248281,-400.0,0.00019896,2]
[360709992,1746946248291,-500.0,0.00019896,2]
[360709993,1746946248303,-400.0,0.00019896,2]
[360709994,1746946248313,-450.0,0.00019896,2]
[360709995,1746946248324,-471.56814642,0.00019896,2]
[360709996,1746946248334,-400.0,0.00019896,2]
[360709997,1746946248345,-496.4790808,0.00019896,2]
[360709998,1746946248355,-400.0,0.00019896,2]
[360709999,1746946248365,-534.49117348,0.00019896,2]
[360710000,1746946248376,-400.0,0.00019896,2]
[360710001,1746946248386,-400.0,0.00019896,2]
[360710002,1746946248397,-400.0,0.00019896,2]
[360710003,1746946248408,-400.0,0.00019896,2]
[360710004,1746946248418,-400.0,0.00019896,2]
[360710005,1746946248429,-400.0,0.00019896,2]
[360710006,1746946248439,-400.0,0.00019896,2]
[360710007,1746946248449,-402.90454395,0.00019896,2]
[360710008,1746946248459,-400.0,0.00019896,2]
[360710009,1746946248469,-400.0,0.00019896,2]
[360710010,1746946248479,-400.0,0.00019896,2]
[360710011,1746946248489,-400.0,0.00019896,2]
[360710012,1746946248499,-400.0,0.00019896,2]
[360710013,1746946248509,-500.0,0.00019896,2]
[360710014,1746946248519,-151.0,0.00019896,2]
[360710015,1746946248529,-400.0,0.00019896,2]
[360710016,1746946248540,-450.0,0.00019896,2]
[360710017,1746946248551,-400.0,0.00019896,2]
[360710018,1746946248562,-642.12,0.00019896,2]
[360710019,1746946248573,-400.0,0.00019896,2]
[360710020,1746946248583,-400.0,0.00019896,2]
[360710021,1746946248594,-400.0,0.00019896,2]
[360710022,1746946248604,-400.0,0.00019896,2]
[360710023,1746946248615,-151.0,0.00019896,2]
[360710024,1746946248625,-151.0,0.00019896,2]
[360710025,1746946248636,-151.0,0.00019896,2]
[360710026,1746946248647,-151.0,0.00019896,2]
[360710027,1746946248657,-151.0,0.00019896,2]
[360710028,1746946248668,-400.0,0.00019896,2]
[360710029,1746946248679,-413.65,0.00019896,2]
[360710030,1746946248690,-400.0,0.00019896,2]
[360710031,1746946248700,-400.0,0.00019896,2]
[360710032,1746946248711,-400.0,0.00019896,2]
[360710033,1746946248721,-400.0,0.00019896,2]
[360710034,1746946248731,-361.18,0.00019896,2]
[360710035,1746946248742,-151.0,0.00019896,2]
[360710036,1746946248752,-151.0,0.00019896,2]
[360710037,1746946248762,-400.0,0.00019896,2]
[360710038,1746946248772,-400.0,0.00019896,2]
[360710039,1746946248783,-151.0,0.00019896,2]
[360710040,1746946248793,-151.0,0.00019896,2]
[360710041,1746946248805,-450.0,0.00019896,2]
[360710042,1746946248816,-400.0,0.00019896,2]
[360710043,1746946248826,-400.0,0.00019896,2]
[360710044,1746946248836,-400.0,0.00019896,2]
[360710045,1746946248846,-450.0,0.00019896,2]
[360710046,1746946248856,-450.0,0.00019896,2]
[360710047,1746946248866,-400.0,0.00019896,2]
[360710048,1746946248876,-400.0,0.00019896,2]
[360710049,1746946248886,-400.0,0.00019896,2]
[360710050,1746946248896,-400.0,0.00019896,2]
[360710051,1746946248906,-400.0,0.00019896,2]
[360710052,1746946248917,-400.0,0.00019896,2]
[360710053,1746946248927,-400.0,0.00019896,2]
[360710054,1746946248937,-729.542443,0.00019896,2]
[360710055,1746946248947,-400.0,0.00019896,2]
[360710056,1746946248957,-400.0,0.00019896,2]
[360710057,1746946248967,-729.542443,0.00019896,2]
[360710058,1746946248977,-400.0,0.00019896,2]
[360710059,1746946248987,-400.0,0.00019896,2]
[360710060,1746946248997,-400.0,0.00019896,2]
[360710061,1746946249008,-400.0,0.00019896,2]
[360710062,1746946249019,-152.431677,0.00019896,2]
[360710063,1746946249029,-400.0,0.00019896,2]
[360710064,1746946249039,-400.0,0.00019896,2]
[360710065,1746946249050,-400.0,0.00019896,2]
[360710066,1746946249060,-400.0,0.00019896,2]
[360710067,1746946249071,-400.0,0.00019896,2]
[360710068,1746946249082,-400.0,0.00019896,2]
[360710069,1746946249095,-400.0,0.00019896,2]
[360710070,1746946249105,-400.0,0.00019896,2]
[360710071,1746946249115,-400.0,0.00019896,2]
[360710072,1746946249127,-2000.0,0.00019896,2]
[360710073,1746946249137,-400.0,0.00019896,2]
[360710074,1746946249147,-451.06,0.00019896,2]
[360710075,1746946249159,-157.902498,0.00019896,2]
[360710076,1746946249340,-400.0,0.00019896,2]
[360710077,1746946249351,-400.0,0.00019896,2]
[360710078,1746946249362,-400.0,0.00019896,2]
[360710079,1746946249371,-237.68,0.00019896,2]
[360710080,1746946249381,-400.0,0.00019896,2]
[360710081,1746946249391,-400.0,0.00019896,2]
[360710082,1746946249401,-269.561996,0.00019896,2]
[360710083,1746946249411,-269.561996,0.00019896,2]
[360710084,1746946249421,-450.0,0.00019896,2]
[360710085,1746946249431,-400.0,0.00019896,2]
[360710086,1746946249441,-400.0,0.00019896,2]
[360710087,1746946249451,-269.561996,0.00019896,2]
[360710088,1746946249462,-400.0,0.00019896,2]
[360710089,1746946249472,-400.0,0.00019896,2]
[360710090,1746946249482,-269.561996,0.00019896,2]
[360710091,1746946249492,-400.0,0.00019896,2]
[360710092,1746946249501,-400.0,0.00019896,2]
[360710093,1746946249511,-400.0,0.00019896,2]
[360710094,1746946249522,-235.16320827,0.00019896,2]
[360710095,1746946249531,-400.0,0.00019896,2]
[360710096,1746946249541,-150.0,0.00019897,2]
[360710097,1746946249554,-500.0,0.00019897,2]
[360710098,1746946249564,-500.0,0.00019897,2]
[360710099,1746946249573,-150.0,0.00019897,2]
[360710100,1746946249582,-396.34198063,0.00019898,2]
[360710101,1746946249591,-400.5784244,0.00019898,2]
[360710102,1746946249600,-200.0,0.00019898,2]
[360710103,1746946249610,-400.0,0.00019898,2]
[360710104,1746946249620,-1294.67,0.00019898,2]
[360710105,1746946249629,-400.0,0.00019898,2]
[360710106,1746946249639,-400.0,0.00019898,2]
[360710107,1746946249648,-400.0,0.00019898,2]
[360710108,1746946249658,-450.0,0.00019898,2]
[360710109,1746946249667,-400.0,0.00019898,2]
[360710110,1746946249676,-400.0,0.00019898,2]
[360710111,1746946249686,-400.0,0.00019898,2]
[360710112,1746946249695,-400.0,0.00019898,2]
[360710113,1746946249704,-400.0,0.00019898,2]
[360710114,1746946249715,-608.28,0.00019898,2]
[360710115,1746946249725,-400.0,0.00019898,2]
[360710116,1746946249734,-400.0,0.00019898,2]
[360710117,1746946249744,-400.0,0.00019898,2]
[360710118,1746946249753,-400.0,0.00019898,2]
[360710119,1746946249763,-528.76,0.00019898,2]
[360710120,1746946249772,-400.0,0.00019898,2]
[360710121,1746946249782,-400.0,0.00019898,2]
[360710122,1746946249791,-400.0,0.00019898,2]
[360710123,1746946249803,-400.0,0.00019898,2]
[360710124,1746946249812,-400.0,0.00019898,2]
[360710125,1746946249822,-400.0,0.00019898,2]
[360710126,1746946249831,-400.0,0.00019898,2]
[360710127,1746946249841,-400.0,0.00019898,2]
[360710128,1746946249851,-400.0,0.00019898,2]
[360710129,1746946249860,-400.0,0.00019898,2]
[360710130,1746946249870,-928.33,0.00019898,2]
[360710131,1746946249879,-400.0,0.00019898,2]
[360710132,1746946249889,-450.0,0.00019898,2]
[360710133,1746946249898,-400.0,0.00019898,2]
[360710134,1746946249908,-400.0,0.00019898,2]
[360710135,1746946249917,-400.0,0.00019898,2]
[360710136,1746946249927,-450.0,0.00019898,2]
[360710137,1746946249936,-422.8,0.00019898,2]
[360710138,1746946249945,-400.0,0.00019898,2]
[360710139,1746946249955,-400.0,0.00019898,2]
[360710140,1746946249964,-400.0,0.00019898,2]
[360710141,1746946249973,-400.0,0.00019898,2]
[360710142,1746946249983,-400.0,0.00019898,2]
[360710143,1746946249992,-400.0,0.00019898,2]
[360710144,1746946250002,-400.0,0.00019898,2]
[360710145,1746946250011,-453.11374431,0.00019898,2]
[360710146,1746946250021,-400.0,0.00019898,2]
[360710147,1746946250031,-400.0,0.00019898,2]
[360710148,1746946250041,-492.21,0.00019898,2]
[360710149,1746946250053,-400.0,0.00019898,2]
[360710150,1746946250062,-400.0,0.00019898,2]
[360710151,1746946250071,-506.08,0.00019898,2]
[360710152,1746946250082,-400.0,0.00019898,2]
[360710153,1746946250093,-400.0,0.00019898,2]
[360710154,1746946250102,-400.0,0.00019898,2]
[360710155,1746946250112,-729.542443,0.00019898,2]
[360710156,1746946250121,-729.542443,0.00019898,2]
[360710157,1746946250131,-415.05038413,0.00019898,2]
[360710158,1746946250140,-400.0,0.00019898,2]
[360710159,1746946250149,-400.0,0.00019898,2]
[360710160,1746946250158,-400.0,0.00019898,2]
[360710161,1746946250168,-400.0,0.00019898,2]
[360710162,1746946250178,-400.0,0.00019898,2]
[360710163,1746946250187,-400.0,0.00019898,2]
[360710164,1746946250197,-410.65660702,0.00019898,2]
[360710165,1746946250207,-400.0,0.00019898,2]
[360710166,1746946250216,-500.0,0.00019898,2]
[360710167,1746946250225,-400.0,0.00019898,2]
[360710168,1746946250235,-400.0,0.00019898,2]
[360710169,1746946250244,-400.0,0.00019898,2]
[360710170,1746946250253,-1000.0,0.00019898,2]
[360710171,1746946250265,-400.0,0.00019898,2]
[360710172,1746946250275,-400.0,0.00019899,2]
[360710173,1746946250284,-156.299646,0.00019899,2]
[360710174,1746946250294,-151.0,0.00019899,2]
[360710175,1746946250305,-151.0,0.00019899,2]
[360710176,1746946250314,-400.0,0.00019899,2]
[360710177,1746946250324,-400.0,0.00019899,2]
[360710178,1746946250333,-400.0,0.00019899,2]
[360710179,1746946250343,-3351.11,0.000199,2]
[360710180,1746946250352,-2260.07274489,0.000199,2]
[360710181,1746946250361,-12500.0,0.000199,2]
[360710182,1746946250370,-2312.2,0.000199,2]
[360710183,1746946250379,-802.85,0.000199,2]
[360710184,1746946250388,-151.0,0.000199,2]
[360710185,1746946250398,-151.0,0.000199,2]
[360710186,1746946250407,-218.16077318,0.000199,23]
[360710187,1746946250416,-236.0,0.000199,2]
[360710188,1746946250426,-374.0,0.000199,2]
[360710189,1746946250435,-196.72378652,0.000199,2]
[360710190,1746946250444,-765.0,0.000199,2]
[360710191,1746946250454,-575.19236855,0.000199,2]
[360710192,1746946250463,-169.5712259,0.000199,2]
[360710193,1746946250472,-3452.36942574,0.000199,2]
[360710194,1746946250482,-5800.0,0.000199,2]
[360710195,1746946250491,-13622.79035851,0.000199,2]
[360710196,1746946250500,-4752.48849991,0.000199,2]
[360710197,1746946250509,-269.561996,0.000199,2]
[360710198,1746946250519,-269.561996,0.000199,2]
[360710199,1746946250529,-22067.84628456,0.000199,2]
[360710200,1746946250539,-5378.55513024,0.00019903,2]
[360710201,1746946250549,-265.77039094,0.00019915,2]
[360710202,1746946250558,-150.0,0.00019924,2]
[360710203,1746946250567,-150.0,0.00019924,2]
[360710204,1746946250576,-500.0,0.00019924,2]
[360710205,1746946250586,-500.0,0.00019924,2]
[360710206,1746946250595,-150.0,0.00019928,2]
[360710207,1746946250603,-150.0,0.0001993,2]
[360710208,1746946250613,-400.0,0.00019949,2]
[360710209,1746946250622,-13876.65,0.00019949,2]
[360710210,1746946250632,-400.0,0.00019949,2]
[360710211,1746946250642,-400.0,0.00019949,2]
[360710212,1746946250652,-400.0,0.00019949,2]
[360710213,1746946250661,-400.0,0.00019949,2]
[360710214,1746946250670,-400.0,0.00019949,2]
[360710215,1746946250679,-400.0,0.00019949,2]
[360710216,1746946250689,-400.0,0.00019949,2]
[360710217,1746946250698,-400.0,0.00019949,2]
[360710218,1746946250707,-1596.27,0.00019949,2]
[360710219,1746946250716,-1077.05,0.00019949,2]
[360710220,1746946250726,-960.29,0.00019949,2]
[360710221,1746946250735,-494.61,0.00019949,2]
[360710222,1746946250745,-1124.0,0.00019949,2]
[360710223,1746946250754,-400.0,0.00019949,2]
[360710224,1746946250763,-400.0,0.00019949,2]
[360710225,1746946250772,-254.36607261,0.0001995,2]
[360710226,1746946250782,-535049.44885082,0.0001995,2]
[360710227,1746946251066,-682.5605456,0.0001995,2]
[360710228,1746946251079,-407.08,0.0001995,2]
[360710229,1746946251223,-400.0,0.00019798,2]
[360710230,1746946251234,-970.83,0.00019799,2]
[360710231,1746946251244,-970.83,0.00019895,2]
[360710232,1746946251255,-970.83,0.00019949,2]
[360710233,1746946251264,-13974.69305457,0.0001995,2]
[360710234,1746946251275,-342865.81708651,0.0001995,2]
[360710235,1746946251284,-41331.85721499,0.0001995,2]
[360710236,1746946251293,-151.0,0.0001995,2]
[360710237,1746946251303,-151.0,0.0001995,2]
[360710238,1746946251313,-151.0,0.0001995,2]
[360710239,1746946251322,-151.0,0.0001995,2]
[360710240,1746946251331,-729.542443,0.0001995,2]
[360710241,1746946251340,-729.542443,0.0001995,2]
[360710242,1746946251349,-150.0,0.00019952,2]
[360710243,1746946251359,-500.0,0.00019952,2]
[360710244,1746946251368,-502.38593341,0.00019952,2]
[360710245,1746946251377,-150.0,0.00019956,2]
[360710246,1746946251386,-1031.8641071,0.00019966,2]
[360710247,1746946251395,-902.870453,0.0001997,2]
[360710248,1746946251404,-151.0,0.00019972,2]
[360710249,1746946251413,-444.33,0.00019972,2]
[360710250,1746946251423,-644.09,0.00019972,2]
[360710251,1746946251432,-421.74,0.00019972,2]
[360710252,1746946251441,-506.62,0.00019972,2]
[360710253,1746946251451,-682.59,0.00019972,2]
[360710254,1746946251461,-151.0,0.00019972,2]
[360710255,1746946251470,-187.173695,0.00019972,2]
[360710256,1746946251479,-400.0,0.00019972,2]
[360710257,1746946251488,-400.0,0.00019972,2]
[360710258,1746946251497,-400.0,0.00019972,2]
[360710259,1746946251506,-400.0,0.00019972,2]
[360710260,1746946251515,-400.0,0.00019972,2]
[360710261,1746946251525,-400.0,0.00019972,2]
[360710262,1746946251534,-627.15,0.00019972,2]
[360710263,1746946251543,-485.84,0.00019972,2]
[360710264,1746946251553,-729.542443,0.00019972,2]
[360710265,1746946251562,-171.9692922,0.00019972,2]
[360710266,1746946251571,-729.542443,0.00019972,2]
[360710267,1746946251580,-413.72,0.00019972,2]
[360710268,1746946251590,-400.0,0.00019972,2]
[360710269,1746946251601,-578.11,0.00019972,2]
[360710270,1746946251610,-400.0,0.00019972,2]
[360710271,1746946251620,-941.63,0.00019972,2]
[360710272,1746946251629,-578.0,0.00019972,2]
[360710273,1746946251640,-502.49468644,0.00019973,2]
[360710274,1746946251652,-501.35752397,0.00019973,2]
[360710275,1746946251661,-500.7542669,0.00019973,2]
[360710276,1746946251670,-500.90778499,0.00019973,2]
[360710277,1746946251679,-500.90283498,0.00019973,2]
[360710278,1746946251690,-501.0925657,0.00019973,2]
[360710279,1746946251699,-502.09531479,0.00019973,2]
[360710280,1746946251708,-500.0,0.00019973,2]
[360710281,1746946251718,-500.0,0.00019973,2]
[360710282,1746946251727,-500.0,0.00019973,2]
[360710283,1746946251736,-505.40962677,0.00019973,2]
[360710284,1746946251745,-500.0,0.00019973,2]
[360710285,1746946251755,-357.32092884,0.00019973,2]
[360710286,1746946251763,-500.0,0.00019973,2]
[360710287,1746946251773,-501.77239095,0.00019973,2]
[360710288,1746946251782,-151.0,0.00019973,2]
[360710289,1746946251791,-211.116075,0.00019973,2]
[360710290,1746946251801,-773.8767989,0.00019978,2]
[360710291,1746946251811,-644.8831448,0.00019978,2]
[360710292,1746946251820,-515.8894907,0.00019978,2]
[360710293,1746946251829,-386.8958366,0.00019978,2]
[360710294,1746946251839,-150.0,0.00019979,2]
[360710295,1746946251848,-500.0,0.00019979,2]
[360710296,1746946251857,-400.0,0.00019984,2]
[360710297,1746946251867,-400.0,0.00019992,2]
[360710298,1746946251876,-413.01683892,0.00019992,2]
[360710299,1746946251886,-400.0,0.00019992,2]
[360710300,1746946251895,-400.0,0.00019992,2]
[360710301,1746946251905,-510.94800496,0.00019992,2]
[360710302,1746946251915,-400.0,0.00019992,2]
[360710303,1746946251924,-400.0,0.00019992,2]
[360710304,1746946251934,-444.33,0.00019992,2]
[360710305,1746946251944,-444.33,0.00019992,2]
[360710306,1746946251955,-444.33,0.00019992,2]
[360710307,1746946251965,-444.33,0.00019992,2]
[360710308,1746946251974,-644.09,0.00019992,2]
[360710309,1746946251984,-644.09,0.00019992,2]
[360710310,1746946251993,-644.09,0.00019992,2]
[360710311,1746946252003,-644.09,0.00019992,2]
[360710312,1746946252013,-400.0,0.00019992,2]
[360710313,1746946252022,-400.0,0.00019992,2]
[360710314,1746946252031,-506.62,0.00019992,2]
[360710315,1746946252041,-506.62,0.00019992,2]
[360710316,1746946252051,-506.62,0.00019992,2]
[360710317,1746946252060,-506.62,0.00019992,2]
[360710318,1746946252069,-682.59,0.00019992,2]
[360710319,1746946252079,-682.59,0.00019992,2]
[360710320,1746946252092,-682.59,0.00019992,2]
[360710321,1746946252102,-682.59,0.00019992,2]
[360710322,1746946252111,-400.0,0.00019992,2]
[360710323,1746946252120,-400.0,0.00019992,2]
[360710324,1746946252129,-400.0,0.00019992,2]
[360710325,1746946252138,-400.0,0.00019992,2]
[360710326,1746946252147,-400.0,0.00019992,2]
[360710327,1746946252156,-400.0,0.00019992,2]
[360710328,1746946252166,-418.20184355,0.00019992,2]
[360710329,1746946252175,-400.0,0.00019992,2]
[360710330,1746946252185,-627.15,0.00019992,2]
[360710331,1746946252194,-627.15,0.00019992,2]
[360710332,1746946252203,-627.15,0.00019992,2]
[360710333,1746946252213,-627.15,0.00019992,2]
[360710334,1746946252222,-485.84,0.00019992,2]
[360710335,1746946252231,-485.84,0.00019992,2]
[360710336,1746946252240,-485.84,0.00019992,2]
[360710337,1746946252250,-485.84,0.00019992,2]
[360710338,1746946252259,-400.0,0.00019992,2]
[360710339,1746946252432,-533.25591022,0.00019992,2]
[360710340,1746946252441,-413.72,0.00019992,2]
[360710341,1746946252450,-413.72,0.00019992,2]
[360710342,1746946252459,-413.72,0.00019992,2]
[360710343,1746946252468,-413.72,0.00019992,2]
[360710344,1746946252477,-400.0,0.00019992,2]
[360710345,1746946252487,-400.0,0.00019992,2]
[360710346,1746946252496,-400.0,0.00019992,2]
[360710347,1746946252505,-400.0,0.00019992,2]
[360710348,1746946252514,-578.11,0.00019992,2]
[360710349,1746946252524,-578.11,0.00019992,2]
[360710350,1746946252532,-578.11,0.00019992,2]
[360710351,1746946252542,-578.11,0.00019992,2]
[360710352,1746946252552,-400.0,0.00019992,2]
[360710353,1746946252561,-400.0,0.00019992,2]
[360710354,1746946252572,-400.0,0.00019992,2]
[360710355,1746946252581,-400.0,0.00019992,2]
[360710356,1746946252590,-504.15742015,0.00019992,2]
[360710357,1746946252599,-941.63,0.00019992,2]
[360710358,1746946252609,-941.63,0.00019992,2]
[360710359,1746946252618,-941.63,0.00019992,2]
[360710360,1746946252627,-941.63,0.00019992,2]
[360710361,1746946252636,-1014.23419445,0.00019992,2]
[360710362,1746946252646,-400.0,0.00019992,2]
[360710363,1746946252655,-400.0,0.00019992,2]
[360710364,1746946252664,-462.51,0.00019992,2]
[360710365,1746946252674,-156.51609757,0.00019992,2]
[360710366,1746946252683,-400.0,0.00019992,2]
[360710367,1746946252692,-400.0,0.00019992,2]
[360710368,1746946252701,-400.0,0.00019992,2]
[360710369,1746946252711,-400.0,0.00019992,2]
[360710370,1746946252720,-400.0,0.00019993,2]
[360710371,1746946252729,-400.0,0.00019993,2]
[360710372,1746946252739,-400.0,0.00019993,2]
[360710373,1746946252748,-400.0,0.00019993,2]
[360710374,1746946252758,-400.0,0.00019993,2]
[360710375,1746946252767,-450.0,0.00019993,2]
[360710376,1746946252776,-400.0,0.00019993,2]
[360710377,1746946252786,-400.0,0.00019993,2]
[360710378,1746946252795,-400.0,0.00019993,2]
[360710379,1746946252805,-400.0,0.00019993,2]
[360710380,1746946252814,-400.0,0.00019993,2]
[360710381,1746946252823,-400.0,0.00019993,2]
[360710382,1746946252833,-400.0,0.00019993,2]
[360710383,1746946252842,-402.16,0.00019993,2]
[360710384,1746946252852,-400.0,0.00019993,2]
[360710385,1746946252861,-400.0,0.00019993,2]
[360710386,1746946252871,-400.0,0.00019993,2]
[360710387,1746946252880,-400.0,0.00019993,2]
[360710388,1746946252890,-400.0,0.00019993,2]
[360710389,1746946252899,-400.0,0.00019993,2]
[360710390,1746946252909,-400.0,0.00019993,2]
[360710391,1746946252919,-400.0,0.00019993,2]
[360710392,1746946252928,-400.0,0.00019993,2]
[360710393,1746946252938,-400.0,0.00019993,2]
[360710394,1746946252947,-400.0,0.00019993,2]
[360710395,1746946252957,-400.0,0.00019993,2]
[360710396,1746946252967,-400.0,0.00019993,2]
[360710397,1746946252976,-400.0,0.00019993,2]
[360710398,1746946252986,-400.0,0.00019993,2]
[360710399,1746946252995,-400.0,0.00019993,2]
[360710400,1746946253005,-400.0,0.00019993,2]
[360710401,1746946253014,-400.0,0.00019993,2]
[360710402,1746946253024,-400.0,0.00019993,2]
[360710403,1746946253033,-400.0,0.00019993,2]
[360710404,1746946253042,-400.0,0.00019993,2]
[360710405,1746946253054,-400.0,0.00019993,2]
[360710406,1746946253063,-400.0,0.00019993,2]
[360710407,1746946253073,-400.0,0.00019993,2]
[360710408,1746946253085,-400.0,0.00019993,2]
[360710409,1746946253095,-400.0,0.00019993,2]
[360710410,1746946253105,-400.0,0.00019993,2]
[360710411,1746946253116,-400.0,0.00019993,2]
[360710412,1746946253127,-400.0,0.00019993,2]
[360710413,1746946253136,-400.0,0.00019993,2]
[360710414,1746946253147,-400.0,0.00019993,2]
[360710415,1746946253158,-400.0,0.00019993,2]
[360710416,1746946253168,-400.0,0.00019993,2]
[360710417,1746946253178,-400.0,0.00019993,2]
[360710418,1746946253187,-400.0,0.00019993,2]
[360710419,1746946253197,-400.0,0.00019993,2]
[360710420,1746946253206,-400.0,0.00019993,2]
[360710421,1746946253216,-553.58,0.00019993,2]
[360710422,1746946253225,-400.0,0.00019993,2]
[360710423,1746946253234,-400.0,0.00019993,2]
[360710424,1746946253244,-500.0,0.00019993,2]
[360710425,1746946253253,-400.0,0.00019993,2]
[360710426,1746946253263,-400.0,0.00019993,2]
[360710427,1746946253273,-400.0,0.00019993,2]
[360710428,1746946253282,-400.0,0.00019993,2]
[360710429,1746946253292,-400.0,0.00019993,2]
[360710430,1746946253303,-400.0,0.00019993,2]
[360710431,1746946253313,-400.0,0.00019993,2]
[360710432,1746946253322,-400.0,0.00019993,2]
[360710433,1746946253331,-400.0,0.00019993,2]
[360710434,1746946253341,-400.0,0.00019993,2]
[360710435,1746946253351,-400.0,0.00019993,2]
[360710436,1746946253360,-400.0,0.00019993,2]
[360710437,1746946253370,-400.0,0.00019993,2]
[360710438,1746946253379,-400.0,0.00019993,2]
[360710439,1746946253389,-400.0,0.00019993,2]
[360710440,1746946253399,-400.0,0.00019993,2]
[360710441,1746946253408,-400.0,0.00019993,2]
[360710442,1746946253417,-400.0,0.00019993,2]
[360710443,1746946253427,-400.0,0.00019993,2]
[360710444,1746946253437,-400.0,0.00019993,2]
[360710445,1746946253446,-400.0,0.00019993,2]
[360710446,1746946253455,-400.0,0.00019993,2]
[360710447,1746946253465,-400.0,0.00019993,2]
[360710448,1746946253473,-465.61,0.00019993,2]
[360710449,1746946253483,-400.0,0.00019993,2]
[360710450,1746946253492,-400.0,0.00019993,2]
[360710451,1746946253501,-400.0,0.00019993,2]
[360710452,1746946253511,-400.0,0.00019993,2]
[360710453,1746946253520,-151.0,0.00019993,2]
[360710454,1746946253529,-400.0,0.00019993,2]
[360710455,1746946253539,-400.0,0.00019993,2]
[360710456,1746946253548,-400.0,0.00019993,2]
[360710457,1746946253562,-400.0,0.00019993,2]
[360710458,1746946253572,-400.0,0.00019993,2]
[360710459,1746946253581,-400.0,0.00019993,2]
[360710460,1746946253591,-400.0,0.00019993,2]
[360710461,1746946253600,-400.0,0.00019993,2]
[360710462,1746946253609,-400.0,0.00019993,2]
[360710463,1746946253619,-400.0,0.00019993,2]
[360710464,1746946253629,-400.0,0.00019993,2]
[360710465,1746946253638,-400.0,0.00019993,2]
[360710466,1746946253648,-400.0,0.00019993,2]
[360710467,1746946253657,-445.05549792,0.00019993,2]
[360710468,1746946253667,-400.0,0.00019993,2]
[360710469,1746946253676,-1294.67,0.00019993,2]
[360710470,1746946253685,-400.0,0.00019993,2]